Workbook

Sheet Simulador
A1: SIMULADOR | Empréstimo Saque Aniversário FGTS
L4: PCE 3.5.3
C7: Método de Simulação | D7: Saldo FGTS | E7: 2 | G7: =IF(D7="Valor Financiado","Saldo Mínimo FGTS","Liberado Cliente") -> Liberado Cliente | I7: =IFERROR(IF(AND(D11="",D13=""),"",Calculo!$H$5),"") -> 6226.292285
C9: Data de Nascimento | D9: 1991-10-01 | G9: Seguro | I9: =IF(I7="","",Calculo!D13) -> 0
C11: Saldo FGTS | D11: 10000 | G11: =IF(G7="Saldo Mínimo FGTS","","IOF") -> IOF | I11: =IF(G11="","",IF(I7="","",IF(AND(D11="",D13=""),"",Calculo!$H$6))) -> 180.0147854
C13: Valor Financiado | G13: Prazo (anos) | I13: =IF(I7="","",D15) -> 10
C15: Prazo (anos) | D15: 10 | G15: Valor total FGTS Reservado | I15: =IF(AND(D11="",D13=""),"",Calculo!$H$8) -> 9939.97535
C17: Taxa de juros a.m. | D17: 0.0159 | G17: Saldo FGTS Restante | I17: =IF(AND(D11="",D13=""),"",Calculo!$H$9) -> 60.02465
C19: Tarifa de Cadastro | D19: Sim | G19: Observação: | H19: =IF(AND(D11="",D13=""),"Preencher Dados da Simulação",IF(AND(D13<>"",I7=""),"Clicar no botão Calcular",Calculo!$H$24)) -> 
C21: Seguro | D21: Não
C25: Faixa de Saldo | D25: Alíquota | E25: Parcela Adicional
C26: 0 | D26: 0.5 | E26: 0
C27: 500 | D27: 0.4 | E27: 50
C28: 1000 | D28: 0.3 | E28: 150
C29: 5000 | D29: 0.2 | E29: 650
C30: 10000 | D30: 0.15 | E30: 1150
C31: 15000 | D31: 0.1 | E31: 1900
C32: 20000 | D32: 0.05 | E32: 2900
C39: *Valores apresentados são estimados, para obter a condição oficial é necessário realizar o cadastro da proposta pelo sistema

Sheet Calculo (hidden)
C1: Resumo | M1: Cálculo | AB1: Tabela FGTS | AG1: Configurações
AB2: Tabela FGTS | AC2: Alíquota | AD2: Parcela Adicional | AM2: Calculo seguro
AB3: 0 | AC3: 0.5 | AD3: 0 | AG3: Feriados | AI3: Lista Supensa | AM3: Valor minimo | AN3: Maximo | AO3: Valor seguro
B4: Entrada | C4: Resumo | D4: Replay | G4: Resumo | AB4: 500.01 | AC4: 0.4 | AD4: 50 | AI4: Saldo FGTS | AJ4: Saldo FGTS | AM4: 0 | AN4: 500 | AO4: 27
B5: =IF(Simulador!D7="Saldo FGTS",AI4,AI5) -> Saldo FGTS | C5: Metodo de Simulação | D5: =B5 -> Saldo FGTS | G5: =IF(D5="Saldo FGTS","Liberado Cliente","Saldo FGTS") -> Liberado Cliente | H5: =IF(D5="Saldo FGTS",U9,IF(AA31=1000000,"",P25)) -> 6226.292285 | I5: =H5/$H$8 -> 0.6263891072 | AB5: 1000.01 | AC5: 0.3 | AD5: 150 | AI5: Valor Financiado | AJ5: Valor Financiado | AM5: 500.01 | AN5: 900 | AO5: 40
B6: =Simulador!D9 -> 1991-10-01 | C6: Data Nascimento | D6: =B6 -> 1991-10-01 | G6: IOF | H6: =IF(D5="Saldo FGTS",S9,IF(AA31=1000000,"",P25)) -> 180.0147854 | I6: =H6/$H$8 -> 0.01811018429 | AB6: 5000.01 | AC6: 0.2 | AD6: 650 | AM6: 900.01 | AN6: 1500 | AO6: 75
B7: =Simulador!D11 -> 10000 | C7: Saldo FGTS | D7: =B7 -> 10000 | G7: taxa | H7: =D10 -> 0.0159 | M7: Simulação por Saldo FGTS | AB7: 10000.01 | AC7: 0.15 | AD7: 1150 | AI7: Troco mínimo | AJ7: 200 | AM7: 1500.01 | AN7: 100000 | AO7: 130
B8: =Simulador!D13 -> 0 | C8: Valor Financiado | D8: =B8+D12 -> 60 | G8: Valor total pago | H8: =IF(D5="Saldo FGTS",N9,IF(AA31=1000000,"",N25)) -> 9939.97535 | I8: =H8/$H$8 -> 1 | P8: Saldo FGTS | R8: VP | S8: IOF | T8: Tarifa | U8: Lib. Cliente | V8: Seguro | W8: Meta Encontrar Saldo | AB8: 15000.01 | AC8: 0.1 | AD8: 1900
B9: =Simulador!D15 -> 10 | C9: Prazo (anos) | D9: 10 | G9: Saldo FGTS Restante | H9: =IF(G5="Saldo FGTS",IF(AA31=1000000,"",H5-H8),D7-H8) -> 60.02465 | I9: =H9/$H$8 -> 0.006038712158 | M9: Data de Vencimento | N9: =SUM(N11:N20) -> 9939.97535 | P9: =D7 -> 10000 | R9: =SUM(R11:R20) -> 6466.30707 | S9: =SUM(S11:S20)+R9*$AA$14 -> 180.0147854 | T9: =D12 -> 60 | U9: =R9-S9-T9-V9 -> 6226.292285 | V9: =D13 -> 0 | W9: =SUM(N11:N15)-SUM(W11:W15) -> 1393.94 | Z9: CET | AA9: =IFERROR(XIRR(N10:N20,M10:M20),1000000) -> 0.2115835011 | AB9: 20000.01 | AC9: 0.05 | AD9: 2900 | AI9: 0.0179 | AJ9: 1 | AO9: =R9-S9-T9 -> 6226.292285
B10: =Simulador!D17 -> 0.0159 | C10: Taxa de juros a.m. | D10: 0.0159 | G10: Juros | H10: =IF(G5="Saldo FGTS",IF(AA31=1000000,"",H8-D8),H8-H5) -> 3713.683065 | I10: =H10/$H$8 -> 0.3736108928 | L10: =D9 -> 10 | M10: =D30 -> 2024-04-11 | N10: =-SUM(R11:R20) -> -6466.30707 | Z10: Taxa Ano | AA10: =(1+AA9)^(360/365)-1 -> 0.2084022463 | AI10: 0.0174 | AJ10: 2
C11: 1ºvcto | D11: =D22 -> 2024-10-01 | L11: =L10-1 -> 9 | M11: =D22 -> 2024-10-01 | N11: =IF(M11="",0,$P$9*O11+VLOOKUP(O11,$AC$3:$AD$9,2,0)) -> 2650 | O11: =IF(P9>=$AB$9,$AC$9,IF(AND(P9<$AB$9,P9>=$AB$8),$AC$8,IF(AND(P9<$AB$8,P9>=$AB$7),$AC$7,IF(AND(P9<$AB$7,P9>=$AB$6),$AC$6,IF(AND(P9<$AB$6,P9>=$AB$5),$AC$5,IF(AND(P9<$AB$5,P9>=$AB$4),$AC$4,IF(AND(P9<$AB$4,P9>=$AB$3),$AC$3))))))) -> 0.2 | P11: =P9-N11 -> 7350 | Q11: =IF(M11="","",M11-$M$10) -> 173 | R11: =IF(M11="","",N11/(1+$D$10)^(Q11/30)) -> 2419.572665 | S11: =IF(M11="","",IF(Q11>$AA$15,$AA$15,Q11)*$AA$13*R11) -> 34.32405782 | W11: 2289.99 | Z11: Taxa mês conf. | AA11: =(1+AA10)^(1/12)-1 -> 0.01590000001 | AI11: 0.0169 | AJ11: 3
A12: 0.0199 | B12: =Simulador!D19 -> Sim | C12: Tarifa de Cadastro | D12: =IF(B12="Sim",60,0) -> 60 | G12: Fluxo de Vencimento | L12: =L11-1 -> 8 | M12: =IF(L12<0,"",EDATE(M11,12)) -> 2025-10-01 | N12: =IF(M12="",0,P11*O12+VLOOKUP(O12,$AC$3:$AD$9,2,0)) -> 2120 | O12: =IF(P11>=$AB$9,$AC$9,IF(AND(P11<$AB$9,P11>=$AB$8),$AC$8,IF(AND(P11<$AB$8,P11>=$AB$7),$AC$7,IF(AND(P11<$AB$7,P11>=$AB$6),$AC$6,IF(AND(P11<$AB$6,P11>=$AB$5),$AC$5,IF(AND(P11<$AB$5,P11>=$AB$4),$AC$4,IF(AND(P11<$AB$4,P11>=$AB$3),$AC$3))))))) -> 0.2 | P12: =P11-N12 -> 5230 | Q12: 538 | R12: 1597.626685 | S12: 47.81696667 | W12: 1831.91 | AI12: 0.0164 | AJ12: 4
A13: 0.016 | B13: =Simulador!D21 -> Não | C13: Seguro | D13: =IF(B13="Sim",E13,0) -> 0 | E13: =IF(Simulador!D7="valor financiado",VLOOKUP((Calculo!R25-Calculo!S25-Calculo!U25),Calculo!$AM$4:$AO$7,3),VLOOKUP((Calculo!R9-Calculo!S9-Calculo!T9),Calculo!$AM$4:$AO$7,3)) -> 130 | G13: 1 | H13: =M11 -> 2024-10-01 | I13: =IF($D$5="Saldo FGTS",N11,N27) -> 2650 | L13: 7 | M13: 2026-10-01 | N13: 1696 | O13: 0.2 | P13: 3534 | Q13: 903 | R13: 1054.901578 | S13: 31.57320424 | W13: 1373.29 | Z13: Alíquota Diária | AA13: 8.2e-05 | AI13: 0.0159 | AJ13: 5
C14: Regra de vencimento | G14: 2 | H14: 2025-10-01 | I14: =IF($D$5="Saldo FGTS",N12,N28) -> 2120 | L14: 6 | M14: 2027-10-01 | N14: 1210.2 | O14: 0.3 | P14: 2323.8 | Q14: 1268 | R14: 621.2836036 | S14: 18.59501826 | W14: 961.3 | Z14: Alíquota Add | AA14: 0.0038 | AJ14: 6
C15: Parâmetro Dias | D15: 10 | G15: 3 | H15: 2026-10-01 | I15: =IF($D$5="Saldo FGTS",N13,N29) -> 1696 | L15: 5 | M15: 2028-10-01 | N15: 847.14 | O15: 0.3 | P15: 1476.66 | Q15: 1634 | R15: 358.7618181 | S15: 10.73774122 | W15: 672.91 | Z15: prazo | AA15: 365 | AJ15: 7
C16: hoje | D16: =TODAY() -> 2024-04-11 | G16: 4 | H16: 2027-10-01 | I16: =IF($D$5="Saldo FGTS",N14,N30) -> 1210.2 | L16: 4 | M16: 2029-10-01 | N16: 592.998 | O16: 0.3 | P16: 883.662 | Q16: 1999 | R16: 207.2769004 | S16: 6.20379763 | AJ16: 8
C17: Valida Data | D17: =IF(OR(WEEKDAY(D16)=1,WEEKDAY(D16)=7,AG:AG=D16), "Não é dia Útil","É dia Útil") -> É dia Útil | G17: 5 | H17: 2028-10-01 | I17: 847.14 | L17: 3 | M17: 2030-10-01 | N17: 403.4648 | O17: 0.4 | P17: 480.1972 | Q17: 2364 | R17: =IF(M17="","",N17/(1+$D$10)^(Q17/30)) -> 116.3991952 | S17: 3.483827911 | AJ17: 9
C18: Hoje Ajustado | D18: =IF(D17="É dia Útil",D16,WORKDAY(D16,1,)) -> 2024-04-11 | G18: 6 | H18: 2029-10-01 | I18: 592.998 | L18: 2 | M18: 2031-10-01 | N18: 240.0986 | O18: =IF(P17>=$AB$9,$AC$9,IF(AND(P17<$AB$9,P17>=$AB$8),$AC$8,IF(AND(P17<$AB$8,P17>=$AB$7),$AC$7,IF(AND(P17<$AB$7,P17>=$AB$6),$AC$6,IF(AND(P17<$AB$6,P17>=$AB$5),$AC$5,IF(AND(P17<$AB$5,P17>=$AB$4),$AC$4,IF(AND(P17<$AB$4,P17>=$AB$3),$AC$3))))))) -> 0.5 | P18: 240.0986 | Q18: 2729 | R18: =IF(M18="","",N18/(1+$D$10)^(Q18/30)) -> 57.17163384 | S18: 1.711147001 | AJ18: 10
C19: data nascimento | D19: =D6 -> 1991-10-01 | G19: 7 | H19: 2030-10-01 | I19: 403.4648 | L19: 1 | M19: 2032-10-01 | N19: 120.0493 | O19: 0.5 | P19: 120.0493 | Q19: 3095 | R19: =IF(M19="","",N19/(1+$D$10)^(Q19/30)) -> 23.58136236 | S19: 0.7057901755
C20: data corte | D20: =DATE(YEAR(D16),MONTH(D19),1)-D15 -> 2024-09-21 | G20: 8 | H20: =M18 -> 2031-10-01 | I20: 240.0986 | L20: 0 | M20: 2033-10-01 | N20: 60.02465 | O20: 0.5 | P20: 60.02465 | Q20: 3460 | R20: =IF(M20="","",N20/(1+$D$10)^(Q20/30)) -> 9.731629039 | S20: 0.2912676571
C21: AjusteVcto | D21: =IF(D16<D20,"este ano","proximo ano") -> este ano | G21: 9 | H21: =M19 -> 2032-10-01 | I21: 120.0493
C22: 1ºvcto | D22: =IF(D21="este ano",DATE(YEAR(D16),MONTH(D19),1),DATE(YEAR(D16)+1,MONTH(D19),1)) -> 2024-10-01 | G22: 10 | H22: =M20 -> 2033-10-01 | I22: =IF($D$5="Saldo FGTS",N20,N36) -> 60.02465
G23: Observação | M23: Simulação por Valor Financiado (Precisa de Meta Taxa)
C24: Data Simulação | G24: Consolidado | H24: =IF(H25<>"",H25,"") ->  | R24: Financiado | S24: IOF | T24: Lib. Cliente | U24: TC | V24: Seguro | AI24: Seguro Valor liberado
C25: Inicio da "Não Contratação" | D25: =D20 -> 2024-09-21 | G25: Troco mínimo | H25: =IF(OR(AND(G5="Saldo FGTS",D8<$AJ$7),AND(D5="Saldo FGTS",H5<$AJ$7)),"Fora do valor mínimo permitido","") ->  | N25: =SUM(N27:N36) -> 118649.8414 | P25: 237690.9145 | R25: =SUM(R27:R36) -> 57020.02778 | S25: =SUM(S27:S36)+R25*$AA$14 -> 1710.757681 | T25: =R25-S25-U25-V25 -> 55249.2701 | U25: =D12 -> 60 | V25: =AK26 -> 0 | Z25: CET | AA25: =XIRR(N26:N36,M26:M36) -> 0.2115835011 | AI25: Seguro? | AJ25: VALOR | AK25: XX | AL25: TOTAL
C26: Fim da "Não Contratação" | D26: =DATE(YEAR(D25),MONTH(EDATE(D25,1)),1) -> 2024-10-01 | L26: =L10 -> 10 | M26: =M10 -> 2024-04-11 | N26: =-SUM(R27:R36) -> -57020.02778 | Z26: Taxa Ano | AA26: =(1+AA25)^(360/365)-1 -> 0.2084022463 | AI26: =Simulador!D21 -> Não | AJ26: Seguro | AK26: =IF(AI26="Sim",AL26,0) -> 0 | AL26: =IF(AJ27<=500,27,IF(AND(AJ27>500.01,AJ27<=900),40,IF(AND(AJ27>901.01,AJ27<=1500),75,IF(AJ27>1500.01,"130")))) -> 130
C27: Permite Contratação | D27: =IF(AND(D18>=D25,D18<=D26),"Não","Sim") -> Sim | L27: =L26-1 -> 9 | M27: =M11 -> 2024-10-01 | N27: =IF(M27="01/01/1900",0,P25*O27+VLOOKUP(O27,$AC$3:$AD$9,2,0)) -> 14784.54573 | O27: =IF(P25>=$AB$9,$AC$9,IF(AND(P25<$AB$9,P25>=$AB$8),$AC$8,IF(AND(P25<$AB$8,P25>=$AB$7),$AC$7,IF(AND(P25<$AB$7,P25>=$AB$6),$AC$6,IF(AND(P25<$AB$6,P25>=$AB$5),$AC$5,IF(AND(P25<$AB$5,P25>=$AB$4),$AC$4,IF(AND(P25<$AB$4,P25>=$AB$3),$AC$3))))))) -> 0.05 | P27: =IF(M27="01/01/1900",0,P25-N27) -> 222906.3688 | Q27: =IF(M27="01/01/1900","",M27-$M$26) -> 173 | R27: =IF(M27="01/01/1900","",N27/(1+$D$10)^(Q27/30)) -> 13498.9746 | S27: =IF(M27="01/01/1900","",IF(Q27>$AA$15,$AA$15,Q27)*$AA$13*R27) -> 191.4964537 | Z27: Taxa mês conf. | AA27: =(1+AA26)^(1/12)-1 -> 0.01590000001 | AJ27: =R25-S25-U25 -> 55249.2701
C28: Data da Simulação | D28: =WORKDAY(D26,1,) -> 2024-10-02 | L28: 8 | M28: =IF(L28<0,"01/01/1900",EDATE(M27,12)) -> 2025-10-01 | N28: =IF(M28="01/01/1900",0,P27*O28+VLOOKUP(O28,$AC$3:$AD$9,2,0)) -> 14045.31844 | O28: =IF(P27>=$AB$9,$AC$9,IF(AND(P27<$AB$9,P27>=$AB$8),$AC$8,IF(AND(P27<$AB$8,P27>=$AB$7),$AC$7,IF(AND(P27<$AB$7,P27>=$AB$6),$AC$6,IF(AND(P27<$AB$6,P27>=$AB$5),$AC$5,IF(AND(P27<$AB$5,P27>=$AB$4),$AC$4,IF(AND(P27<$AB$4,P27>=$AB$3),$AC$3))))))) -> 0.05 | P28: =IF(M28="01/01/1900",0,P27-N28) -> 208861.0504 | Q28: 538 | R28: 10584.51676 | S28: 316.7945866
C29: Validação Data | D29: =IF(OR(WEEKDAY(D28)=1,WEEKDAY(D28)=7,AG:AG=D28), "Não é dia Útil","É dia Útil") -> É dia Útil | L29: 7 | M29: 2026-10-01 | N29: 13343.05252 | O29: 0.05 | P29: =IF(M29="01/01/1900",0,P28-N29) -> 195517.9978 | Q29: 903 | R29: 8299.296676 | S29: 248.3979495 | Z29: Meta | AA29: =T25-D8 -> 55189.2701
C30: Data Final Simulação | D30: =IF(D27="Não",D28,D18) -> 2024-04-11 | L30: 6 | M30: 2027-10-01 | N30: 12675.89989 | O30: 0.05 | P30: =IF(M30="01/01/1900",0,P29-N30) -> 182842.0979 | Q30: 1268 | R30: 6507.460555 | S30: 194.7682944 | Z30: valida meta | AA30: 0
L31: 5 | M31: 2028-10-01 | N31: 12042.1049 | O31: 0.05 | P31: =IF(M31="01/01/1900",0,P30-N31) -> 170799.9931 | Q31: 1634 | R31: 5099.803394 | S31: 152.6371156 | Z31: teste | AA31: =IF(OR(T25-D8>1,T25-D8<-1,),1000000,ROUND(T25-D8,2)) -> 1000000
L32: 4 | M32: 2029-10-01 | N32: 11439.99965 | O32: 0.05 | P32: =IF(M32="01/01/1900",0,P31-N32) -> 159359.9934 | Q32: 1999 | R32: 3998.7448 | S32: 119.6824319
L33: 3 | M33: 2030-10-01 | N33: 10867.99967 | O33: 0.05 | P33: 148491.9937 | Q33: 2364 | R33: 3135.40714 | S33: 93.8427357
L34: 2 | M34: 2031-10-01 | N34: 10324.59969 | O34: 0.05 | P34: 138167.394 | Q34: 2729 | R34: 2458.46595 | S34: 73.58188589
L35: 1 | M35: 2032-10-01 | N35: 9808.369702 | O35: 0.05 | P35: 128359.0243 | Q35: 3095 | R35: 1926.664463 | S35: 57.66506738
L36: 0 | M36: 2033-10-01 | N36: 9317.951217 | O36: 0.05 | P36: 119041.0731 | Q36: 3460 | R36: 1510.693434 | S36: 45.21505449
M45: Calculadora Safra
M46: =M26 -> 2024-04-11 | N46: =-SUM(P47:P51) -> -5502.281871 | P46: =SUM(P47:P51) -> 5502.281871 | Z46: CET | AA46: =IFERROR(XIRR(N46:N51,M46:M51),1000000) -> 0.2115835011
M47: =M46+360 -> 2025-04-06 | N47: =N11 -> 2650 | O47: =M47-$M$46 -> 360 | P47: =N47/(1+$D$10)^(O47/30) -> 2192.97838 | Z47: Taxa Ano | AA47: =(1+AA46)^(360/365)-1 -> 0.2084022463
M48: =M47+360 -> 2026-04-01 | N48: =N12 -> 2120 | O48: =M48-$M$46 -> 720 | P48: =N48/(1+$D$10)^(O48/30) -> 1451.820128 | Z48: Taxa mês conf. | AA48: =(1+AA47)^(1/12)-1 -> 0.01590000001
M49: =M48+360 -> 2027-03-27 | N49: =N13 -> 1696 | O49: =M49-$M$46 -> 1080 | P49: =N49/(1+$D$10)^(O49/30) -> 961.1502345
M50: =M49+360 -> 2028-03-21 | N50: =N14 -> 1210.2 | O50: =M50-$M$46 -> 1440 | P50: =N50/(1+$D$10)^(O50/30) -> 567.5590499
M51: =M50+360 -> 2029-03-16 | N51: =N15 -> 847.14 | O51: =M51-$M$46 -> 1800 | P51: =N51/(1+$D$10)^(O51/30) -> 328.7740785

Sheet Importante (hidden)
B2: 1) vencimento sempre dia 01
B3: 2) após data corte vencimento +1 ano
B4: 3) no período de "não contratação" simular o próximo dia apto (02 do mês aniversário - dia útil?)
B5: 4) valor mínimo de liberação e saldo FGTS
B6: 5) prazo e taxa fixa
B7: 6) CEF não abre de final de semana
